{"text_format":"1","workbook":"xlsx","n_sheets":2,"sheets":["Sheet1","Sheet2"],"not_rendered":{"charts":0,"images":0,"macros":0,"external_links":0,"defined_names":0,"comments":0,"pivot_tables":0},"unopened":[],"bounds":{"document_bytes":16777216,"sheet_cells":100000,"rows_first":2000,"rows_last":500,"rows_between":2000,"halvings":0,"cell_chars":16384,"cell_head_chars":4096},"cells_cut":0,"cells_raw":0,"read":"whole","date_system":"1900"}

{"sheet":"Sheet1","index":0,"n_rows":62,"n_cols":33,"rows_kept":62,"cut":false,"hidden":false,"merged":[[5,26,6,26],[1,22,1,24],[10,22,10,24],[0,26,1,28],[2,26,2,28]]}
["id","name_m",null,"id","name_w",null,"id","surname_m",null,"id","surname_w",null,"id","fruit",null,"id","veg",null,"id","city",null,null,null,null,null,null,"имена таблиц и их вторые столбцы должны совпадать",null,null,null,"tab","rus","max"]
[{"$f":"MAX(A$1:A1)+1","v":1},"Артём",null,{"$f":"MAX(D$1:D1)+1","v":1},"Софья",null,{"$f":"MAX(G$1:G1)+1","v":1},"Иванов",null,{"$f":"MAX(J$1:J1)+1","v":1},"Иванова",null,{"$f":"MAX(M$1:M1)+1","v":1}," Банан ",null,{"$f":"MAX(P$1:P1)+1","v":1},"Баклажан",null,{"$f":"MAX(S$1:S1)+1","v":1},"Москва",null,"МАКС",50,null,null,null,null,null,null,null,"name_m","Имена мужские",{"$f":"COUNTA(INDIRECT(list[[#This Row],[tab]] & \"[id]\"))","v":30}]
[{"$f":"MAX(A$1:A2)+1","v":2},"Александр",null,{"$f":"MAX(D$1:D2)+1","v":2},"Анастасия",null,{"$f":"MAX(G$1:G2)+1","v":2},"Васильев",null,{"$f":"MAX(J$1:J2)+1","v":2},"Васильева",null,{"$f":"MAX(M$1:M2)+1","v":2}," Виноград  ",null,{"$f":"MAX(P$1:P2)+1","v":2},"Батат",null,{"$f":"MAX(S$1:S2)+1","v":2},"Санкт-Петербург",null,null,"плюс 10",null,null,null,"Списки можно расширять",null,null,null,"name_w","Имена женские",{"$f":"COUNTA(INDIRECT(list[[#This Row],[tab]] & \"[id]\"))","v":30}]
[{"$f":"MAX(A$1:A3)+1","v":3},"Максим",null,{"$f":"MAX(D$1:D3)+1","v":3},"Дарья",null,{"$f":"MAX(G$1:G3)+1","v":3},"Петров",null,{"$f":"MAX(J$1:J3)+1","v":3},"Петрова",null,{"$f":"MAX(M$1:M3)+1","v":3}," Вишня  ",null,{"$f":"MAX(P$1:P3)+1","v":3},"Кабачок",null,{"$f":"MAX(S$1:S3)+1","v":3},"Новосибирск",null,null,null,"плюс 5",null,null,null,null,null,null,"surname_m","Фамилии мужские",{"$f":"COUNTA(INDIRECT(list[[#This Row],[tab]] & \"[id]\"))","v":30}]
[{"$f":"MAX(A$1:A4)+1","v":4},"Данила",null,{"$f":"MAX(D$1:D4)+1","v":4},"Мария",null,{"$f":"MAX(G$1:G4)+1","v":4},"Смирнов",null,{"$f":"MAX(J$1:J4)+1","v":4},"Смирнова",null,{"$f":"MAX(M$1:M4)+1","v":4}," Грейпфрут  ",null,{"$f":"MAX(P$1:P4)+1","v":4},"Капуста",null,{"$f":"MAX(S$1:S4)+1","v":4},"Екатеринбург",null,null,null,null,"плюс 1",null,"кол-во","макс","список",null,"surname_w","Фамилии женские",{"$f":"COUNTA(INDIRECT(list[[#This Row],[tab]] & \"[id]\"))","v":30}]
[{"$f":"MAX(A$1:A5)+1","v":5},"Дмитрий",null,{"$f":"MAX(D$1:D5)+1","v":5},"Анна",null,{"$f":"MAX(G$1:G5)+1","v":5},"Михайлов",null,{"$f":"MAX(J$1:J5)+1","v":5},"Михайлова",null,{"$f":"MAX(M$1:M5)+1","v":5}," Ежевика  ",null,{"$f":"MAX(P$1:P5)+1","v":5},"Картофель",null,{"$f":"MAX(S$1:S5)+1","v":5},"Нижний Новгород",null,null,null,null,null,null,13,{"$f":"VLOOKUP(AC6,list[[rus]:[max]],2,0)","v":30},"Имена женские",null,"fruit","Фрукты",{"$f":"COUNTA(INDIRECT(list[[#This Row],[tab]] & \"[id]\"))","v":20}]
[{"$f":"MAX(A$1:A6)+1","v":6},"Иван",null,{"$f":"MAX(D$1:D6)+1","v":6},"Виктория",null,{"$f":"MAX(G$1:G6)+1","v":6},"Фёдоров",null,{"$f":"MAX(J$1:J6)+1","v":6},"Фёдорова",null,{"$f":"MAX(M$1:M6)+1","v":6}," Инжир  ",null,{"$f":"MAX(P$1:P6)+1","v":6},"Кукуруза",null,{"$f":"MAX(S$1:S6)+1","v":6},"Казань",null,null,null,null,null,null,null,null,null,null,"veg","Овощи",{"$f":"COUNTA(INDIRECT(list[[#This Row],[tab]] & \"[id]\"))","v":20}]
[{"$f":"MAX(A$1:A7)+1","v":7},"Кирилл",null,{"$f":"MAX(D$1:D7)+1","v":7},"Полина",null,{"$f":"MAX(G$1:G7)+1","v":7},"Соколов",null,{"$f":"MAX(J$1:J7)+1","v":7},"Соколова",null,{"$f":"MAX(M$1:M7)+1","v":7}," Киви  ",null,{"$f":"MAX(P$1:P7)+1","v":7},"Лук",null,{"$f":"MAX(S$1:S7)+1","v":7},"Челябинск",null,null,null,null,"минус 1",null,null,null,null,null,"city","Города",{"$f":"COUNTA(INDIRECT(list[[#This Row],[tab]] & \"[id]\"))","v":20}]
[{"$f":"MAX(A$1:A8)+1","v":8},"Никита",null,{"$f":"MAX(D$1:D8)+1","v":8},"Елизавета",null,{"$f":"MAX(G$1:G8)+1","v":8},"Яковлев",null,{"$f":"MAX(J$1:J8)+1","v":8},"Яковлева",null,{"$f":"MAX(M$1:M8)+1","v":8}," Клюква ",null,{"$f":"MAX(P$1:P8)+1","v":8},"Морковь",null,{"$f":"MAX(S$1:S8)+1","v":8},"Омск",null,null,null,"минус 5"]
[{"$f":"MAX(A$1:A9)+1","v":9},"Михаил",null,{"$f":"MAX(D$1:D9)+1","v":9},"Екатерина",null,{"$f":"MAX(G$1:G9)+1","v":9},"Попов",null,{"$f":"MAX(J$1:J9)+1","v":9},"Попова",null,{"$f":"MAX(M$1:M9)+1","v":9}," Кокос  ",null,{"$f":"MAX(P$1:P9)+1","v":9},"Огурец",null,{"$f":"MAX(S$1:S9)+1","v":9},"Самара",null,null,"минус 10"]
[{"$f":"MAX(A$1:A10)+1","v":10},"Егор",null,{"$f":"MAX(D$1:D10)+1","v":10},"Ксения",null,{"$f":"MAX(G$1:G10)+1","v":10},"Андреев",null,{"$f":"MAX(J$1:J10)+1","v":10},"Андреева",null,{"$f":"MAX(M$1:M10)+1","v":10}," Лимон  ",null,{"$f":"MAX(P$1:P10)+1","v":10},"Перец",null,{"$f":"MAX(S$1:S10)+1","v":10},"Ростов-на-Дону",null,"МИН",1]
[{"$f":"MAX(A$1:A11)+1","v":11},"Матвей",null,{"$f":"MAX(D$1:D11)+1","v":11},"Валерия",null,{"$f":"MAX(G$1:G11)+1","v":11},"Алексеев",null,{"$f":"MAX(J$1:J11)+1","v":11},"Алексеева",null,{"$f":"MAX(M$1:M11)+1","v":11}," Манго  ",null,{"$f":"MAX(P$1:P11)+1","v":11},"Редис",null,{"$f":"MAX(S$1:S11)+1","v":11},"Уфа",null,null,null,null,null,null,"кол-во","рнд","Список"]
[{"$f":"MAX(A$1:A12)+1","v":12},"Андрей",null,{"$f":"MAX(D$1:D12)+1","v":12},"Варвара",null,{"$f":"MAX(G$1:G12)+1","v":12},"Александров",null,{"$f":"MAX(J$1:J12)+1","v":12},"Александрова",null,{"$f":"MAX(M$1:M12)+1","v":12}," Мандарин  ",null,{"$f":"MAX(P$1:P12)+1","v":12},"Свекла",null,{"$f":"MAX(S$1:S12)+1","v":12},"Красноярск",null,null,null,null,null,null,{"$f":"IF(MAX($AA$12:AA12)+1>$AA$6,\"\",MAX($AA$12:AA12)+1)","v":1},{"$f":"IFERROR(IF(VALUE(Table8[[#This Row],[кол-во]])>0,ROUNDDOWN(RAND()*$AB$6,0)+1,\"\"),\"\")","v":2},{"$f":"IFERROR(INDEX(INDIRECT(INDEX(list[tab],MATCH($AC$6,list[rus],0)) & \"[\" & INDEX(list[tab],MATCH($AC$6,list[rus],0))& \"]\"),MATCH(Table8[[#This Row],[рнд]],INDIRECT(INDEX(list[tab],MATCH($AC$6,list[rus],0)) & \"[id]\"),0)),\"\")","v":"Анастасия"}]
[{"$f":"MAX(A$1:A13)+1","v":13},"Илья",null,{"$f":"MAX(D$1:D13)+1","v":13},"Александра",null,{"$f":"MAX(G$1:G13)+1","v":13},"Лебедев",null,{"$f":"MAX(J$1:J13)+1","v":13},"Лебедева",null,{"$f":"MAX(M$1:M13)+1","v":13}," Нектарин ",null,{"$f":"MAX(P$1:P13)+1","v":13},"Сельдерей",null,{"$f":"MAX(S$1:S13)+1","v":13},"Пермь",null,null,null,null,null,null,{"$f":"IF(MAX($AA$12:AA13)+1>$AA$6,\"\",MAX($AA$12:AA13)+1)","v":2},{"$f":"IFERROR(IF(VALUE(Table8[[#This Row],[кол-во]])>0,ROUNDDOWN(RAND()*$AB$6,0)+1,\"\"),\"\")","v":13},{"$f":"IFERROR(INDEX(INDIRECT(INDEX(list[tab],MATCH($AC$6,list[rus],0)) & \"[\" & INDEX(list[tab],MATCH($AC$6,list[rus],0))& \"]\"),MATCH(Table8[[#This Row],[рнд]],INDIRECT(INDEX(list[tab],MATCH($AC$6,list[rus],0)) & \"[id]\"),0)),\"\")","v":"Александра"}]
[{"$f":"MAX(A$1:A14)+1","v":14},"Алексей",null,{"$f":"MAX(D$1:D14)+1","v":14},"Вероника",null,{"$f":"MAX(G$1:G14)+1","v":14},"Григорьев",null,{"$f":"MAX(J$1:J14)+1","v":14},"Григорьева",null,{"$f":"MAX(M$1:M14)+1","v":14}," Смородина  ",null,{"$f":"MAX(P$1:P14)+1","v":14},"Томат",null,{"$f":"MAX(S$1:S14)+1","v":14},"Воронеж",null,null,null,null,null,null,{"$f":"IF(MAX($AA$12:AA14)+1>$AA$6,\"\",MAX($AA$12:AA14)+1)","v":3},{"$f":"IFERROR(IF(VALUE(Table8[[#This Row],[кол-во]])>0,ROUNDDOWN(RAND()*$AB$6,0)+1,\"\"),\"\")","v":25},{"$f":"IFERROR(INDEX(INDIRECT(INDEX(list[tab],MATCH($AC$6,list[rus],0)) & \"[\" & INDEX(list[tab],MATCH($AC$6,list[rus],0))& \"]\"),MATCH(Table8[[#This Row],[рнд]],INDIRECT(INDEX(list[tab],MATCH($AC$6,list[rus],0)) & \"[id]\"),0)),\"\")","v":"Юлия"}]
[{"$f":"MAX(A$1:A15)+1","v":15},"Роман",null,{"$f":"MAX(D$1:D15)+1","v":15},"Арина",null,{"$f":"MAX(G$1:G15)+1","v":15},"Степанов",null,{"$f":"MAX(J$1:J15)+1","v":15},"Степанова",null,{"$f":"MAX(M$1:M15)+1","v":15}," Финик  ",null,{"$f":"MAX(P$1:P15)+1","v":15},"Тыква",null,{"$f":"MAX(S$1:S15)+1","v":15},"Волгоград",null,null,null,null,null,null,{"$f":"IF(MAX($AA$12:AA15)+1>$AA$6,\"\",MAX($AA$12:AA15)+1)","v":4},{"$f":"IFERROR(IF(VALUE(Table8[[#This Row],[кол-во]])>0,ROUNDDOWN(RAND()*$AB$6,0)+1,\"\"),\"\")","v":11},{"$f":"IFERROR(INDEX(INDIRECT(INDEX(list[tab],MATCH($AC$6,list[rus],0)) & \"[\" & INDEX(list[tab],MATCH($AC$6,list[rus],0))& \"]\"),MATCH(Table8[[#This Row],[рнд]],INDIRECT(INDEX(list[tab],MATCH($AC$6,list[rus],0)) & \"[id]\"),0)),\"\")","v":"Валерия"}]
[{"$f":"MAX(A$1:A16)+1","v":16},"Сергей",null,{"$f":"MAX(D$1:D16)+1","v":16},"Алиса",null,{"$f":"MAX(G$1:G16)+1","v":16},"Семёнов",null,{"$f":"MAX(J$1:J16)+1","v":16},"Семёнова",null,{"$f":"MAX(M$1:M16)+1","v":16}," Черника  ",null,{"$f":"MAX(P$1:P16)+1","v":16},"Хрен",null,{"$f":"MAX(S$1:S16)+1","v":16},"Краснодар",null,null,null,null,null,null,{"$f":"IF(MAX($AA$12:AA16)+1>$AA$6,\"\",MAX($AA$12:AA16)+1)","v":5},{"$f":"IFERROR(IF(VALUE(Table8[[#This Row],[кол-во]])>0,ROUNDDOWN(RAND()*$AB$6,0)+1,\"\"),\"\")","v":11},{"$f":"IFERROR(INDEX(INDIRECT(INDEX(list[tab],MATCH($AC$6,list[rus],0)) & \"[\" & INDEX(list[tab],MATCH($AC$6,list[rus],0))& \"]\"),MATCH(Table8[[#This Row],[рнд]],INDIRECT(INDEX(list[tab],MATCH($AC$6,list[rus],0)) & \"[id]\"),0)),\"\")","v":"Валерия"}]
[{"$f":"MAX(A$1:A17)+1","v":17},"Владислав",null,{"$f":"MAX(D$1:D17)+1","v":17},"Алина",null,{"$f":"MAX(G$1:G17)+1","v":17},"Павлов",null,{"$f":"MAX(J$1:J17)+1","v":17},"Павлова",null,{"$f":"MAX(M$1:M17)+1","v":17},"Абрикос",null,{"$f":"MAX(P$1:P17)+1","v":17},"Цуккини",null,{"$f":"MAX(S$1:S17)+1","v":17},"Саратов",null,null,null,null,null,null,{"$f":"IF(MAX($AA$12:AA17)+1>$AA$6,\"\",MAX($AA$12:AA17)+1)","v":6},{"$f":"IFERROR(IF(VALUE(Table8[[#This Row],[кол-во]])>0,ROUNDDOWN(RAND()*$AB$6,0)+1,\"\"),\"\")","v":27},{"$f":"IFERROR(INDEX(INDIRECT(INDEX(list[tab],MATCH($AC$6,list[rus],0)) & \"[\" & INDEX(list[tab],MATCH($AC$6,list[rus],0))& \"]\"),MATCH(Table8[[#This Row],[рнд]],INDIRECT(INDEX(list[tab],MATCH($AC$6,list[rus],0)) & \"[id]\"),0)),\"\")","v":"Ева"}]
[{"$f":"MAX(A$1:A18)+1","v":18},"Ярослав",null,{"$f":"MAX(D$1:D18)+1","v":18},"Милана",null,{"$f":"MAX(G$1:G18)+1","v":18},"Богданов",null,{"$f":"MAX(J$1:J18)+1","v":18},"Богданова",null,{"$f":"MAX(M$1:M18)+1","v":18},"Авокадо",null,{"$f":"MAX(P$1:P18)+1","v":18},"Чеснок",null,{"$f":"MAX(S$1:S18)+1","v":18},"Тюмень",null,null,null,null,null,null,{"$f":"IF(MAX($AA$12:AA18)+1>$AA$6,\"\",MAX($AA$12:AA18)+1)","v":7},{"$f":"IFERROR(IF(VALUE(Table8[[#This Row],[кол-во]])>0,ROUNDDOWN(RAND()*$AB$6,0)+1,\"\"),\"\")","v":28},{"$f":"IFERROR(INDEX(INDIRECT(INDEX(list[tab],MATCH($AC$6,list[rus],0)) & \"[\" & INDEX(list[tab],MATCH($AC$6,list[rus],0))& \"]\"),MATCH(Table8[[#This Row],[рнд]],INDIRECT(INDEX(list[tab],MATCH($AC$6,list[rus],0)) & \"[id]\"),0)),\"\")","v":"Карина"}]
[{"$f":"MAX(A$1:A19)+1","v":19},"Тимофей",null,{"$f":"MAX(D$1:D19)+1","v":19},"Маргарита",null,{"$f":"MAX(G$1:G19)+1","v":19},"Николаев",null,{"$f":"MAX(J$1:J19)+1","v":19},"Николаева",null,{"$f":"MAX(M$1:M19)+1","v":19},"Яблоко  ",null,{"$f":"MAX(P$1:P19)+1","v":19},"Шпинат",null,{"$f":"MAX(S$1:S19)+1","v":19},"Тольятти",null,null,null,null,null,null,{"$f":"IF(MAX($AA$12:AA19)+1>$AA$6,\"\",MAX($AA$12:AA19)+1)","v":8},{"$f":"IFERROR(IF(VALUE(Table8[[#This Row],[кол-во]])>0,ROUNDDOWN(RAND()*$AB$6,0)+1,\"\"),\"\")","v":19},{"$f":"IFERROR(INDEX(INDIRECT(INDEX(list[tab],MATCH($AC$6,list[rus],0)) & \"[\" & INDEX(list[tab],MATCH($AC$6,list[rus],0))& \"]\"),MATCH(Table8[[#This Row],[рнд]],INDIRECT(INDEX(list[tab],MATCH($AC$6,list[rus],0)) & \"[id]\"),0)),\"\")","v":"Маргарита"}]
[{"$f":"MAX(A$1:A20)+1","v":20},"Арсений",null,{"$f":"MAX(D$1:D20)+1","v":20},"Диана",null,{"$f":"MAX(G$1:G20)+1","v":20},"Дмитриев",null,{"$f":"MAX(J$1:J20)+1","v":20},"Дмитриева",null,{"$f":"MAX(M$1:M20)+1","v":20},"Ананас",null,{"$f":"MAX(P$1:P20)+1","v":20},"Щавель",null,{"$f":"MAX(S$1:S20)+1","v":20},"Ижевск",null,null,null,null,null,null,{"$f":"IF(MAX($AA$12:AA20)+1>$AA$6,\"\",MAX($AA$12:AA20)+1)","v":9},{"$f":"IFERROR(IF(VALUE(Table8[[#This Row],[кол-во]])>0,ROUNDDOWN(RAND()*$AB$6,0)+1,\"\"),\"\")","v":29},{"$f":"IFERROR(INDEX(INDIRECT(INDEX(list[tab],MATCH($AC$6,list[rus],0)) & \"[\" & INDEX(list[tab],MATCH($AC$6,list[rus],0))& \"]\"),MATCH(Table8[[#This Row],[рнд]],INDIRECT(INDEX(list[tab],MATCH($AC$6,list[rus],0)) & \"[id]\"),0)),\"\")","v":"Василиса"}]
[{"$f":"MAX(A$1:A21)+1","v":21},"Денис",null,{"$f":"MAX(D$1:D21)+1","v":21},"Ульяна",null,{"$f":"MAX(G$1:G21)+1","v":21},"Егоров",null,{"$f":"MAX(J$1:J21)+1","v":21},"Егорова",null,null,null,null,null,null,null,null,null,null,null,null,null,null,null,{"$f":"IF(MAX($AA$12:AA21)+1>$AA$6,\"\",MAX($AA$12:AA21)+1)","v":10},{"$f":"IFERROR(IF(VALUE(Table8[[#This Row],[кол-во]])>0,ROUNDDOWN(RAND()*$AB$6,0)+1,\"\"),\"\")","v":29},{"$f":"IFERROR(INDEX(INDIRECT(INDEX(list[tab],MATCH($AC$6,list[rus],0)) & \"[\" & INDEX(list[tab],MATCH($AC$6,list[rus],0))& \"]\"),MATCH(Table8[[#This Row],[рнд]],INDIRECT(INDEX(list[tab],MATCH($AC$6,list[rus],0)) & \"[id]\"),0)),\"\")","v":"Василиса"}]
[{"$f":"MAX(A$1:A22)+1","v":22},"Владимир",null,{"$f":"MAX(D$1:D22)+1","v":22},"Алёна",null,{"$f":"MAX(G$1:G22)+1","v":22},"Волков",null,{"$f":"MAX(J$1:J22)+1","v":22},"Волкова",null,null,null,null,null,null,null,null,null,null,null,null,null,null,null,{"$f":"IF(MAX($AA$12:AA22)+1>$AA$6,\"\",MAX($AA$12:AA22)+1)","v":11},{"$f":"IFERROR(IF(VALUE(Table8[[#This Row],[кол-во]])>0,ROUNDDOWN(RAND()*$AB$6,0)+1,\"\"),\"\")","v":10},{"$f":"IFERROR(INDEX(INDIRECT(INDEX(list[tab],MATCH($AC$6,list[rus],0)) & \"[\" & INDEX(list[tab],MATCH($AC$6,list[rus],0))& \"]\"),MATCH(Table8[[#This Row],[рнд]],INDIRECT(INDEX(list[tab],MATCH($AC$6,list[rus],0)) & \"[id]\"),0)),\"\")","v":"Ксения"}]
[{"$f":"MAX(A$1:A23)+1","v":23},"Павел",null,{"$f":"MAX(D$1:D23)+1","v":23},"Ангелина",null,{"$f":"MAX(G$1:G23)+1","v":23},"Кузнецов",null,{"$f":"MAX(J$1:J23)+1","v":23},"Кузнецова",null,null,null,null,null,null,null,null,null,null,null,null,null,null,null,{"$f":"IF(MAX($AA$12:AA23)+1>$AA$6,\"\",MAX($AA$12:AA23)+1)","v":12},{"$f":"IFERROR(IF(VALUE(Table8[[#This Row],[кол-во]])>0,ROUNDDOWN(RAND()*$AB$6,0)+1,\"\"),\"\")","v":20},{"$f":"IFERROR(INDEX(INDIRECT(INDEX(list[tab],MATCH($AC$6,list[rus],0)) & \"[\" & INDEX(list[tab],MATCH($AC$6,list[rus],0))& \"]\"),MATCH(Table8[[#This Row],[рнд]],INDIRECT(INDEX(list[tab],MATCH($AC$6,list[rus],0)) & \"[id]\"),0)),\"\")","v":"Диана"}]
[{"$f":"MAX(A$1:A24)+1","v":24},"Глеб",null,{"$f":"MAX(D$1:D24)+1","v":24},"Кристина",null,{"$f":"MAX(G$1:G24)+1","v":24},"Никитин",null,{"$f":"MAX(J$1:J24)+1","v":24},"Никитина",null,null,null,null,null,null,null,null,null,null,null,null,null,null,null,{"$f":"IF(MAX($AA$12:AA24)+1>$AA$6,\"\",MAX($AA$12:AA24)+1)","v":13},{"$f":"IFERROR(IF(VALUE(Table8[[#This Row],[кол-во]])>0,ROUNDDOWN(RAND()*$AB$6,0)+1,\"\"),\"\")","v":12},{"$f":"IFERROR(INDEX(INDIRECT(INDEX(list[tab],MATCH($AC$6,list[rus],0)) & \"[\" & INDEX(list[tab],MATCH($AC$6,list[rus],0))& \"]\"),MATCH(Table8[[#This Row],[рнд]],INDIRECT(INDEX(list[tab],MATCH($AC$6,list[rus],0)) & \"[id]\"),0)),\"\")","v":"Варвара"}]
[{"$f":"MAX(A$1:A25)+1","v":25},"Константин",null,{"$f":"MAX(D$1:D25)+1","v":25},"Юлия",null,{"$f":"MAX(G$1:G25)+1","v":25},"Соловьёв",null,{"$f":"MAX(J$1:J25)+1","v":25},"Соловьёва",null,null,null,null,null,null,null,null,null,null,null,null,null,null,null,{"$f":"IF(MAX($AA$12:AA25)+1>$AA$6,\"\",MAX($AA$12:AA25)+1)","v":""},{"$f":"IFERROR(IF(VALUE(Table8[[#This Row],[кол-во]])>0,ROUNDDOWN(RAND()*$AB$6,0)+1,\"\"),\"\")","v":""},{"$f":"IFERROR(INDEX(INDIRECT(INDEX(list[tab],MATCH($AC$6,list[rus],0)) & \"[\" & INDEX(list[tab],MATCH($AC$6,list[rus],0))& \"]\"),MATCH(Table8[[#This Row],[рнд]],INDIRECT(INDEX(list[tab],MATCH($AC$6,list[rus],0)) & \"[id]\"),0)),\"\")","v":""}]
[{"$f":"MAX(A$1:A26)+1","v":26},"Богдан",null,{"$f":"MAX(D$1:D26)+1","v":26},"Кира",null,{"$f":"MAX(G$1:G26)+1","v":26},"Тимофеев",null,{"$f":"MAX(J$1:J26)+1","v":26},"Тимофеева",null,null,null,null,null,null,null,null,null,null,null,null,null,null,null,{"$f":"IF(MAX($AA$12:AA26)+1>$AA$6,\"\",MAX($AA$12:AA26)+1)","v":""},{"$f":"IFERROR(IF(VALUE(Table8[[#This Row],[кол-во]])>0,ROUNDDOWN(RAND()*$AB$6,0)+1,\"\"),\"\")","v":""},{"$f":"IFERROR(INDEX(INDIRECT(INDEX(list[tab],MATCH($AC$6,list[rus],0)) & \"[\" & INDEX(list[tab],MATCH($AC$6,list[rus],0))& \"]\"),MATCH(Table8[[#This Row],[рнд]],INDIRECT(INDEX(list[tab],MATCH($AC$6,list[rus],0)) & \"[id]\"),0)),\"\")","v":""}]
[{"$f":"MAX(A$1:A27)+1","v":27},"Евгений",null,{"$f":"MAX(D$1:D27)+1","v":27},"Ева",null,{"$f":"MAX(G$1:G27)+1","v":27},"Орлов",null,{"$f":"MAX(J$1:J27)+1","v":27},"Орлова",null,null,null,null,null,null,null,null,null,null,null,null,null,null,null,{"$f":"IF(MAX($AA$12:AA27)+1>$AA$6,\"\",MAX($AA$12:AA27)+1)","v":""},{"$f":"IFERROR(IF(VALUE(Table8[[#This Row],[кол-во]])>0,ROUNDDOWN(RAND()*$AB$6,0)+1,\"\"),\"\")","v":""},{"$f":"IFERROR(INDEX(INDIRECT(INDEX(list[tab],MATCH($AC$6,list[rus],0)) & \"[\" & INDEX(list[tab],MATCH($AC$6,list[rus],0))& \"]\"),MATCH(Table8[[#This Row],[рнд]],INDIRECT(INDEX(list[tab],MATCH($AC$6,list[rus],0)) & \"[id]\"),0)),\"\")","v":""}]
[{"$f":"MAX(A$1:A28)+1","v":28},"Николай",null,{"$f":"MAX(D$1:D28)+1","v":28},"Карина",null,{"$f":"MAX(G$1:G28)+1","v":28},"Афанасьев",null,{"$f":"MAX(J$1:J28)+1","v":28},"Афанасьева",null,null,null,null,null,null,null,null,null,null,null,null,null,null,null,{"$f":"IF(MAX($AA$12:AA28)+1>$AA$6,\"\",MAX($AA$12:AA28)+1)","v":""},{"$f":"IFERROR(IF(VALUE(Table8[[#This Row],[кол-во]])>0,ROUNDDOWN(RAND()*$AB$6,0)+1,\"\"),\"\")","v":""},{"$f":"IFERROR(INDEX(INDIRECT(INDEX(list[tab],MATCH($AC$6,list[rus],0)) & \"[\" & INDEX(list[tab],MATCH($AC$6,list[rus],0))& \"]\"),MATCH(Table8[[#This Row],[рнд]],INDIRECT(INDEX(list[tab],MATCH($AC$6,list[rus],0)) & \"[id]\"),0)),\"\")","v":""}]
[{"$f":"MAX(A$1:A29)+1","v":29},"Степан",null,{"$f":"MAX(D$1:D29)+1","v":29},"Василиса",null,{"$f":"MAX(G$1:G29)+1","v":29},"Филиппов",null,{"$f":"MAX(J$1:J29)+1","v":29},"Филиппова",null,null,null,null,null,null,null,null,null,null,null,null,null,null,null,{"$f":"IF(MAX($AA$12:AA29)+1>$AA$6,\"\",MAX($AA$12:AA29)+1)","v":""},{"$f":"IFERROR(IF(VALUE(Table8[[#This Row],[кол-во]])>0,ROUNDDOWN(RAND()*$AB$6,0)+1,\"\"),\"\")","v":""},{"$f":"IFERROR(INDEX(INDIRECT(INDEX(list[tab],MATCH($AC$6,list[rus],0)) & \"[\" & INDEX(list[tab],MATCH($AC$6,list[rus],0))& \"]\"),MATCH(Table8[[#This Row],[рнд]],INDIRECT(INDEX(list[tab],MATCH($AC$6,list[rus],0)) & \"[id]\"),0)),\"\")","v":""}]
[{"$f":"MAX(A$1:A30)+1","v":30},"Захар",null,{"$f":"MAX(D$1:D30)+1","v":30},"Ольга",null,{"$f":"MAX(G$1:G30)+1","v":30},"Сергеев",null,{"$f":"MAX(J$1:J30)+1","v":30},"Сергеева",null,null,null,null,null,null,null,null,null,null,null,null,null,null,null,{"$f":"IF(MAX($AA$12:AA30)+1>$AA$6,\"\",MAX($AA$12:AA30)+1)","v":""},{"$f":"IFERROR(IF(VALUE(Table8[[#This Row],[кол-во]])>0,ROUNDDOWN(RAND()*$AB$6,0)+1,\"\"),\"\")","v":""},{"$f":"IFERROR(INDEX(INDIRECT(INDEX(list[tab],MATCH($AC$6,list[rus],0)) & \"[\" & INDEX(list[tab],MATCH($AC$6,list[rus],0))& \"]\"),MATCH(Table8[[#This Row],[рнд]],INDIRECT(INDEX(list[tab],MATCH($AC$6,list[rus],0)) & \"[id]\"),0)),\"\")","v":""}]
[null,null,null,null,null,null,null,null,null,null,null,null,null,null,null,null,null,null,null,null,null,null,null,null,null,null,{"$f":"IF(MAX($AA$12:AA31)+1>$AA$6,\"\",MAX($AA$12:AA31)+1)","v":""},{"$f":"IFERROR(IF(VALUE(Table8[[#This Row],[кол-во]])>0,ROUNDDOWN(RAND()*$AB$6,0)+1,\"\"),\"\")","v":""},{"$f":"IFERROR(INDEX(INDIRECT(INDEX(list[tab],MATCH($AC$6,list[rus],0)) & \"[\" & INDEX(list[tab],MATCH($AC$6,list[rus],0))& \"]\"),MATCH(Table8[[#This Row],[рнд]],INDIRECT(INDEX(list[tab],MATCH($AC$6,list[rus],0)) & \"[id]\"),0)),\"\")","v":""}]
[null,null,null,null,null,null,null,null,null,null,null,null,null,null,null,null,null,null,null,null,null,null,null,null,null,null,{"$f":"IF(MAX($AA$12:AA32)+1>$AA$6,\"\",MAX($AA$12:AA32)+1)","v":""},{"$f":"IFERROR(IF(VALUE(Table8[[#This Row],[кол-во]])>0,ROUNDDOWN(RAND()*$AB$6,0)+1,\"\"),\"\")","v":""},{"$f":"IFERROR(INDEX(INDIRECT(INDEX(list[tab],MATCH($AC$6,list[rus],0)) & \"[\" & INDEX(list[tab],MATCH($AC$6,list[rus],0))& \"]\"),MATCH(Table8[[#This Row],[рнд]],INDIRECT(INDEX(list[tab],MATCH($AC$6,list[rus],0)) & \"[id]\"),0)),\"\")","v":""}]
[null,null,null,null,null,null,null,null,null,null,null,null,null,null,null,null,null,null,null,null,null,null,null,null,null,null,{"$f":"IF(MAX($AA$12:AA33)+1>$AA$6,\"\",MAX($AA$12:AA33)+1)","v":""},{"$f":"IFERROR(IF(VALUE(Table8[[#This Row],[кол-во]])>0,ROUNDDOWN(RAND()*$AB$6,0)+1,\"\"),\"\")","v":""},{"$f":"IFERROR(INDEX(INDIRECT(INDEX(list[tab],MATCH($AC$6,list[rus],0)) & \"[\" & INDEX(list[tab],MATCH($AC$6,list[rus],0))& \"]\"),MATCH(Table8[[#This Row],[рнд]],INDIRECT(INDEX(list[tab],MATCH($AC$6,list[rus],0)) & \"[id]\"),0)),\"\")","v":""}]
[null,null,null,null,null,null,null,null,null,null,null,null,null,null,null,null,null,null,null,null,null,null,null,null,null,null,{"$f":"IF(MAX($AA$12:AA34)+1>$AA$6,\"\",MAX($AA$12:AA34)+1)","v":""},{"$f":"IFERROR(IF(VALUE(Table8[[#This Row],[кол-во]])>0,ROUNDDOWN(RAND()*$AB$6,0)+1,\"\"),\"\")","v":""},{"$f":"IFERROR(INDEX(INDIRECT(INDEX(list[tab],MATCH($AC$6,list[rus],0)) & \"[\" & INDEX(list[tab],MATCH($AC$6,list[rus],0))& \"]\"),MATCH(Table8[[#This Row],[рнд]],INDIRECT(INDEX(list[tab],MATCH($AC$6,list[rus],0)) & \"[id]\"),0)),\"\")","v":""}]
[null,null,null,null,null,null,null,null,null,null,null,null,null,null,null,null,null,null,null,null,null,null,null,null,null,null,{"$f":"IF(MAX($AA$12:AA35)+1>$AA$6,\"\",MAX($AA$12:AA35)+1)","v":""},{"$f":"IFERROR(IF(VALUE(Table8[[#This Row],[кол-во]])>0,ROUNDDOWN(RAND()*$AB$6,0)+1,\"\"),\"\")","v":""},{"$f":"IFERROR(INDEX(INDIRECT(INDEX(list[tab],MATCH($AC$6,list[rus],0)) & \"[\" & INDEX(list[tab],MATCH($AC$6,list[rus],0))& \"]\"),MATCH(Table8[[#This Row],[рнд]],INDIRECT(INDEX(list[tab],MATCH($AC$6,list[rus],0)) & \"[id]\"),0)),\"\")","v":""}]
[null,null,null,null,null,null,null,null,null,null,null,null,null,null,null,null,null,null,null,null,null,null,null,null,null,null,{"$f":"IF(MAX($AA$12:AA36)+1>$AA$6,\"\",MAX($AA$12:AA36)+1)","v":""},{"$f":"IFERROR(IF(VALUE(Table8[[#This Row],[кол-во]])>0,ROUNDDOWN(RAND()*$AB$6,0)+1,\"\"),\"\")","v":""},{"$f":"IFERROR(INDEX(INDIRECT(INDEX(list[tab],MATCH($AC$6,list[rus],0)) & \"[\" & INDEX(list[tab],MATCH($AC$6,list[rus],0))& \"]\"),MATCH(Table8[[#This Row],[рнд]],INDIRECT(INDEX(list[tab],MATCH($AC$6,list[rus],0)) & \"[id]\"),0)),\"\")","v":""}]
[null,null,null,null,null,null,null,null,null,null,null,null,null,null,null,null,null,null,null,null,null,null,null,null,null,null,{"$f":"IF(MAX($AA$12:AA37)+1>$AA$6,\"\",MAX($AA$12:AA37)+1)","v":""},{"$f":"IFERROR(IF(VALUE(Table8[[#This Row],[кол-во]])>0,ROUNDDOWN(RAND()*$AB$6,0)+1,\"\"),\"\")","v":""},{"$f":"IFERROR(INDEX(INDIRECT(INDEX(list[tab],MATCH($AC$6,list[rus],0)) & \"[\" & INDEX(list[tab],MATCH($AC$6,list[rus],0))& \"]\"),MATCH(Table8[[#This Row],[рнд]],INDIRECT(INDEX(list[tab],MATCH($AC$6,list[rus],0)) & \"[id]\"),0)),\"\")","v":""}]
[null,null,null,null,null,null,null,null,null,null,null,null,null,null,null,null,null,null,null,null,null,null,null,null,null,null,{"$f":"IF(MAX($AA$12:AA38)+1>$AA$6,\"\",MAX($AA$12:AA38)+1)","v":""},{"$f":"IFERROR(IF(VALUE(Table8[[#This Row],[кол-во]])>0,ROUNDDOWN(RAND()*$AB$6,0)+1,\"\"),\"\")","v":""},{"$f":"IFERROR(INDEX(INDIRECT(INDEX(list[tab],MATCH($AC$6,list[rus],0)) & \"[\" & INDEX(list[tab],MATCH($AC$6,list[rus],0))& \"]\"),MATCH(Table8[[#This Row],[рнд]],INDIRECT(INDEX(list[tab],MATCH($AC$6,list[rus],0)) & \"[id]\"),0)),\"\")","v":""}]
[null,null,null,null,null,null,null,null,null,null,null,null,null,null,null,null,null,null,null,null,null,null,null,null,null,null,{"$f":"IF(MAX($AA$12:AA39)+1>$AA$6,\"\",MAX($AA$12:AA39)+1)","v":""},{"$f":"IFERROR(IF(VALUE(Table8[[#This Row],[кол-во]])>0,ROUNDDOWN(RAND()*$AB$6,0)+1,\"\"),\"\")","v":""},{"$f":"IFERROR(INDEX(INDIRECT(INDEX(list[tab],MATCH($AC$6,list[rus],0)) & \"[\" & INDEX(list[tab],MATCH($AC$6,list[rus],0))& \"]\"),MATCH(Table8[[#This Row],[рнд]],INDIRECT(INDEX(list[tab],MATCH($AC$6,list[rus],0)) & \"[id]\"),0)),\"\")","v":""}]
[null,null,null,null,null,null,null,null,null,null,null,null,null,null,null,null,null,null,null,null,null,null,null,null,null,null,{"$f":"IF(MAX($AA$12:AA40)+1>$AA$6,\"\",MAX($AA$12:AA40)+1)","v":""},{"$f":"IFERROR(IF(VALUE(Table8[[#This Row],[кол-во]])>0,ROUNDDOWN(RAND()*$AB$6,0)+1,\"\"),\"\")","v":""},{"$f":"IFERROR(INDEX(INDIRECT(INDEX(list[tab],MATCH($AC$6,list[rus],0)) & \"[\" & INDEX(list[tab],MATCH($AC$6,list[rus],0))& \"]\"),MATCH(Table8[[#This Row],[рнд]],INDIRECT(INDEX(list[tab],MATCH($AC$6,list[rus],0)) & \"[id]\"),0)),\"\")","v":""}]
[null,null,null,null,null,null,null,null,null,null,null,null,null,null,null,null,null,null,null,null,null,null,null,null,null,null,{"$f":"IF(MAX($AA$12:AA41)+1>$AA$6,\"\",MAX($AA$12:AA41)+1)","v":""},{"$f":"IFERROR(IF(VALUE(Table8[[#This Row],[кол-во]])>0,ROUNDDOWN(RAND()*$AB$6,0)+1,\"\"),\"\")","v":""},{"$f":"IFERROR(INDEX(INDIRECT(INDEX(list[tab],MATCH($AC$6,list[rus],0)) & \"[\" & INDEX(list[tab],MATCH($AC$6,list[rus],0))& \"]\"),MATCH(Table8[[#This Row],[рнд]],INDIRECT(INDEX(list[tab],MATCH($AC$6,list[rus],0)) & \"[id]\"),0)),\"\")","v":""}]
[null,null,null,null,null,null,null,null,null,null,null,null,null,null,null,null,null,null,null,null,null,null,null,null,null,null,{"$f":"IF(MAX($AA$12:AA42)+1>$AA$6,\"\",MAX($AA$12:AA42)+1)","v":""},{"$f":"IFERROR(IF(VALUE(Table8[[#This Row],[кол-во]])>0,ROUNDDOWN(RAND()*$AB$6,0)+1,\"\"),\"\")","v":""},{"$f":"IFERROR(INDEX(INDIRECT(INDEX(list[tab],MATCH($AC$6,list[rus],0)) & \"[\" & INDEX(list[tab],MATCH($AC$6,list[rus],0))& \"]\"),MATCH(Table8[[#This Row],[рнд]],INDIRECT(INDEX(list[tab],MATCH($AC$6,list[rus],0)) & \"[id]\"),0)),\"\")","v":""}]
[null,null,null,null,null,null,null,null,null,null,null,null,null,null,null,null,null,null,null,null,null,null,null,null,null,null,{"$f":"IF(MAX($AA$12:AA43)+1>$AA$6,\"\",MAX($AA$12:AA43)+1)","v":""},{"$f":"IFERROR(IF(VALUE(Table8[[#This Row],[кол-во]])>0,ROUNDDOWN(RAND()*$AB$6,0)+1,\"\"),\"\")","v":""},{"$f":"IFERROR(INDEX(INDIRECT(INDEX(list[tab],MATCH($AC$6,list[rus],0)) & \"[\" & INDEX(list[tab],MATCH($AC$6,list[rus],0))& \"]\"),MATCH(Table8[[#This Row],[рнд]],INDIRECT(INDEX(list[tab],MATCH($AC$6,list[rus],0)) & \"[id]\"),0)),\"\")","v":""}]
[null,null,null,null,null,null,null,null,null,null,null,null,null,null,null,null,null,null,null,null,null,null,null,null,null,null,{"$f":"IF(MAX($AA$12:AA44)+1>$AA$6,\"\",MAX($AA$12:AA44)+1)","v":""},{"$f":"IFERROR(IF(VALUE(Table8[[#This Row],[кол-во]])>0,ROUNDDOWN(RAND()*$AB$6,0)+1,\"\"),\"\")","v":""},{"$f":"IFERROR(INDEX(INDIRECT(INDEX(list[tab],MATCH($AC$6,list[rus],0)) & \"[\" & INDEX(list[tab],MATCH($AC$6,list[rus],0))& \"]\"),MATCH(Table8[[#This Row],[рнд]],INDIRECT(INDEX(list[tab],MATCH($AC$6,list[rus],0)) & \"[id]\"),0)),\"\")","v":""}]
[null,null,null,null,null,null,null,null,null,null,null,null,null,null,null,null,null,null,null,null,null,null,null,null,null,null,{"$f":"IF(MAX($AA$12:AA45)+1>$AA$6,\"\",MAX($AA$12:AA45)+1)","v":""},{"$f":"IFERROR(IF(VALUE(Table8[[#This Row],[кол-во]])>0,ROUNDDOWN(RAND()*$AB$6,0)+1,\"\"),\"\")","v":""},{"$f":"IFERROR(INDEX(INDIRECT(INDEX(list[tab],MATCH($AC$6,list[rus],0)) & \"[\" & INDEX(list[tab],MATCH($AC$6,list[rus],0))& \"]\"),MATCH(Table8[[#This Row],[рнд]],INDIRECT(INDEX(list[tab],MATCH($AC$6,list[rus],0)) & \"[id]\"),0)),\"\")","v":""}]
[null,null,null,null,null,null,null,null,null,null,null,null,null,null,null,null,null,null,null,null,null,null,null,null,null,null,{"$f":"IF(MAX($AA$12:AA46)+1>$AA$6,\"\",MAX($AA$12:AA46)+1)","v":""},{"$f":"IFERROR(IF(VALUE(Table8[[#This Row],[кол-во]])>0,ROUNDDOWN(RAND()*$AB$6,0)+1,\"\"),\"\")","v":""},{"$f":"IFERROR(INDEX(INDIRECT(INDEX(list[tab],MATCH($AC$6,list[rus],0)) & \"[\" & INDEX(list[tab],MATCH($AC$6,list[rus],0))& \"]\"),MATCH(Table8[[#This Row],[рнд]],INDIRECT(INDEX(list[tab],MATCH($AC$6,list[rus],0)) & \"[id]\"),0)),\"\")","v":""}]
[null,null,null,null,null,null,null,null,null,null,null,null,null,null,null,null,null,null,null,null,null,null,null,null,null,null,{"$f":"IF(MAX($AA$12:AA47)+1>$AA$6,\"\",MAX($AA$12:AA47)+1)","v":""},{"$f":"IFERROR(IF(VALUE(Table8[[#This Row],[кол-во]])>0,ROUNDDOWN(RAND()*$AB$6,0)+1,\"\"),\"\")","v":""},{"$f":"IFERROR(INDEX(INDIRECT(INDEX(list[tab],MATCH($AC$6,list[rus],0)) & \"[\" & INDEX(list[tab],MATCH($AC$6,list[rus],0))& \"]\"),MATCH(Table8[[#This Row],[рнд]],INDIRECT(INDEX(list[tab],MATCH($AC$6,list[rus],0)) & \"[id]\"),0)),\"\")","v":""}]
[null,null,null,null,null,null,null,null,null,null,null,null,null,null,null,null,null,null,null,null,null,null,null,null,null,null,{"$f":"IF(MAX($AA$12:AA48)+1>$AA$6,\"\",MAX($AA$12:AA48)+1)","v":""},{"$f":"IFERROR(IF(VALUE(Table8[[#This Row],[кол-во]])>0,ROUNDDOWN(RAND()*$AB$6,0)+1,\"\"),\"\")","v":""},{"$f":"IFERROR(INDEX(INDIRECT(INDEX(list[tab],MATCH($AC$6,list[rus],0)) & \"[\" & INDEX(list[tab],MATCH($AC$6,list[rus],0))& \"]\"),MATCH(Table8[[#This Row],[рнд]],INDIRECT(INDEX(list[tab],MATCH($AC$6,list[rus],0)) & \"[id]\"),0)),\"\")","v":""}]
[null,null,null,null,null,null,null,null,null,null,null,null,null,null,null,null,null,null,null,null,null,null,null,null,null,null,{"$f":"IF(MAX($AA$12:AA49)+1>$AA$6,\"\",MAX($AA$12:AA49)+1)","v":""},{"$f":"IFERROR(IF(VALUE(Table8[[#This Row],[кол-во]])>0,ROUNDDOWN(RAND()*$AB$6,0)+1,\"\"),\"\")","v":""},{"$f":"IFERROR(INDEX(INDIRECT(INDEX(list[tab],MATCH($AC$6,list[rus],0)) & \"[\" & INDEX(list[tab],MATCH($AC$6,list[rus],0))& \"]\"),MATCH(Table8[[#This Row],[рнд]],INDIRECT(INDEX(list[tab],MATCH($AC$6,list[rus],0)) & \"[id]\"),0)),\"\")","v":""}]
[null,null,null,null,null,null,null,null,null,null,null,null,null,null,null,null,null,null,null,null,null,null,null,null,null,null,{"$f":"IF(MAX($AA$12:AA50)+1>$AA$6,\"\",MAX($AA$12:AA50)+1)","v":""},{"$f":"IFERROR(IF(VALUE(Table8[[#This Row],[кол-во]])>0,ROUNDDOWN(RAND()*$AB$6,0)+1,\"\"),\"\")","v":""},{"$f":"IFERROR(INDEX(INDIRECT(INDEX(list[tab],MATCH($AC$6,list[rus],0)) & \"[\" & INDEX(list[tab],MATCH($AC$6,list[rus],0))& \"]\"),MATCH(Table8[[#This Row],[рнд]],INDIRECT(INDEX(list[tab],MATCH($AC$6,list[rus],0)) & \"[id]\"),0)),\"\")","v":""}]
[null,null,null,null,null,null,null,null,null,null,null,null,null,null,null,null,null,null,null,null,null,null,null,null,null,null,{"$f":"IF(MAX($AA$12:AA51)+1>$AA$6,\"\",MAX($AA$12:AA51)+1)","v":""},{"$f":"IFERROR(IF(VALUE(Table8[[#This Row],[кол-во]])>0,ROUNDDOWN(RAND()*$AB$6,0)+1,\"\"),\"\")","v":""},{"$f":"IFERROR(INDEX(INDIRECT(INDEX(list[tab],MATCH($AC$6,list[rus],0)) & \"[\" & INDEX(list[tab],MATCH($AC$6,list[rus],0))& \"]\"),MATCH(Table8[[#This Row],[рнд]],INDIRECT(INDEX(list[tab],MATCH($AC$6,list[rus],0)) & \"[id]\"),0)),\"\")","v":""}]
[null,null,null,null,null,null,null,null,null,null,null,null,null,null,null,null,null,null,null,null,null,null,null,null,null,null,{"$f":"IF(MAX($AA$12:AA52)+1>$AA$6,\"\",MAX($AA$12:AA52)+1)","v":""},{"$f":"IFERROR(IF(VALUE(Table8[[#This Row],[кол-во]])>0,ROUNDDOWN(RAND()*$AB$6,0)+1,\"\"),\"\")","v":""},{"$f":"IFERROR(INDEX(INDIRECT(INDEX(list[tab],MATCH($AC$6,list[rus],0)) & \"[\" & INDEX(list[tab],MATCH($AC$6,list[rus],0))& \"]\"),MATCH(Table8[[#This Row],[рнд]],INDIRECT(INDEX(list[tab],MATCH($AC$6,list[rus],0)) & \"[id]\"),0)),\"\")","v":""}]
[null,null,null,null,null,null,null,null,null,null,null,null,null,null,null,null,null,null,null,null,null,null,null,null,null,null,{"$f":"IF(MAX($AA$12:AA53)+1>$AA$6,\"\",MAX($AA$12:AA53)+1)","v":""},{"$f":"IFERROR(IF(VALUE(Table8[[#This Row],[кол-во]])>0,ROUNDDOWN(RAND()*$AB$6,0)+1,\"\"),\"\")","v":""},{"$f":"IFERROR(INDEX(INDIRECT(INDEX(list[tab],MATCH($AC$6,list[rus],0)) & \"[\" & INDEX(list[tab],MATCH($AC$6,list[rus],0))& \"]\"),MATCH(Table8[[#This Row],[рнд]],INDIRECT(INDEX(list[tab],MATCH($AC$6,list[rus],0)) & \"[id]\"),0)),\"\")","v":""}]
[null,null,null,null,null,null,null,null,null,null,null,null,null,null,null,null,null,null,null,null,null,null,null,null,null,null,{"$f":"IF(MAX($AA$12:AA54)+1>$AA$6,\"\",MAX($AA$12:AA54)+1)","v":""},{"$f":"IFERROR(IF(VALUE(Table8[[#This Row],[кол-во]])>0,ROUNDDOWN(RAND()*$AB$6,0)+1,\"\"),\"\")","v":""},{"$f":"IFERROR(INDEX(INDIRECT(INDEX(list[tab],MATCH($AC$6,list[rus],0)) & \"[\" & INDEX(list[tab],MATCH($AC$6,list[rus],0))& \"]\"),MATCH(Table8[[#This Row],[рнд]],INDIRECT(INDEX(list[tab],MATCH($AC$6,list[rus],0)) & \"[id]\"),0)),\"\")","v":""}]
[null,null,null,null,null,null,null,null,null,null,null,null,null,null,null,null,null,null,null,null,null,null,null,null,null,null,{"$f":"IF(MAX($AA$12:AA55)+1>$AA$6,\"\",MAX($AA$12:AA55)+1)","v":""},{"$f":"IFERROR(IF(VALUE(Table8[[#This Row],[кол-во]])>0,ROUNDDOWN(RAND()*$AB$6,0)+1,\"\"),\"\")","v":""},{"$f":"IFERROR(INDEX(INDIRECT(INDEX(list[tab],MATCH($AC$6,list[rus],0)) & \"[\" & INDEX(list[tab],MATCH($AC$6,list[rus],0))& \"]\"),MATCH(Table8[[#This Row],[рнд]],INDIRECT(INDEX(list[tab],MATCH($AC$6,list[rus],0)) & \"[id]\"),0)),\"\")","v":""}]
[null,null,null,null,null,null,null,null,null,null,null,null,null,null,null,null,null,null,null,null,null,null,null,null,null,null,{"$f":"IF(MAX($AA$12:AA56)+1>$AA$6,\"\",MAX($AA$12:AA56)+1)","v":""},{"$f":"IFERROR(IF(VALUE(Table8[[#This Row],[кол-во]])>0,ROUNDDOWN(RAND()*$AB$6,0)+1,\"\"),\"\")","v":""},{"$f":"IFERROR(INDEX(INDIRECT(INDEX(list[tab],MATCH($AC$6,list[rus],0)) & \"[\" & INDEX(list[tab],MATCH($AC$6,list[rus],0))& \"]\"),MATCH(Table8[[#This Row],[рнд]],INDIRECT(INDEX(list[tab],MATCH($AC$6,list[rus],0)) & \"[id]\"),0)),\"\")","v":""}]
[null,null,null,null,null,null,null,null,null,null,null,null,null,null,null,null,null,null,null,null,null,null,null,null,null,null,{"$f":"IF(MAX($AA$12:AA57)+1>$AA$6,\"\",MAX($AA$12:AA57)+1)","v":""},{"$f":"IFERROR(IF(VALUE(Table8[[#This Row],[кол-во]])>0,ROUNDDOWN(RAND()*$AB$6,0)+1,\"\"),\"\")","v":""},{"$f":"IFERROR(INDEX(INDIRECT(INDEX(list[tab],MATCH($AC$6,list[rus],0)) & \"[\" & INDEX(list[tab],MATCH($AC$6,list[rus],0))& \"]\"),MATCH(Table8[[#This Row],[рнд]],INDIRECT(INDEX(list[tab],MATCH($AC$6,list[rus],0)) & \"[id]\"),0)),\"\")","v":""}]
[null,null,null,null,null,null,null,null,null,null,null,null,null,null,null,null,null,null,null,null,null,null,null,null,null,null,{"$f":"IF(MAX($AA$12:AA58)+1>$AA$6,\"\",MAX($AA$12:AA58)+1)","v":""},{"$f":"IFERROR(IF(VALUE(Table8[[#This Row],[кол-во]])>0,ROUNDDOWN(RAND()*$AB$6,0)+1,\"\"),\"\")","v":""},{"$f":"IFERROR(INDEX(INDIRECT(INDEX(list[tab],MATCH($AC$6,list[rus],0)) & \"[\" & INDEX(list[tab],MATCH($AC$6,list[rus],0))& \"]\"),MATCH(Table8[[#This Row],[рнд]],INDIRECT(INDEX(list[tab],MATCH($AC$6,list[rus],0)) & \"[id]\"),0)),\"\")","v":""}]
[null,null,null,null,null,null,null,null,null,null,null,null,null,null,null,null,null,null,null,null,null,null,null,null,null,null,{"$f":"IF(MAX($AA$12:AA59)+1>$AA$6,\"\",MAX($AA$12:AA59)+1)","v":""},{"$f":"IFERROR(IF(VALUE(Table8[[#This Row],[кол-во]])>0,ROUNDDOWN(RAND()*$AB$6,0)+1,\"\"),\"\")","v":""},{"$f":"IFERROR(INDEX(INDIRECT(INDEX(list[tab],MATCH($AC$6,list[rus],0)) & \"[\" & INDEX(list[tab],MATCH($AC$6,list[rus],0))& \"]\"),MATCH(Table8[[#This Row],[рнд]],INDIRECT(INDEX(list[tab],MATCH($AC$6,list[rus],0)) & \"[id]\"),0)),\"\")","v":""}]
[null,null,null,null,null,null,null,null,null,null,null,null,null,null,null,null,null,null,null,null,null,null,null,null,null,null,{"$f":"IF(MAX($AA$12:AA60)+1>$AA$6,\"\",MAX($AA$12:AA60)+1)","v":""},{"$f":"IFERROR(IF(VALUE(Table8[[#This Row],[кол-во]])>0,ROUNDDOWN(RAND()*$AB$6,0)+1,\"\"),\"\")","v":""},{"$f":"IFERROR(INDEX(INDIRECT(INDEX(list[tab],MATCH($AC$6,list[rus],0)) & \"[\" & INDEX(list[tab],MATCH($AC$6,list[rus],0))& \"]\"),MATCH(Table8[[#This Row],[рнд]],INDIRECT(INDEX(list[tab],MATCH($AC$6,list[rus],0)) & \"[id]\"),0)),\"\")","v":""}]
[null,null,null,null,null,null,null,null,null,null,null,null,null,null,null,null,null,null,null,null,null,null,null,null,null,null,{"$f":"IF(MAX($AA$12:AA61)+1>$AA$6,\"\",MAX($AA$12:AA61)+1)","v":""},{"$f":"IFERROR(IF(VALUE(Table8[[#This Row],[кол-во]])>0,ROUNDDOWN(RAND()*$AB$6,0)+1,\"\"),\"\")","v":""},{"$f":"IFERROR(INDEX(INDIRECT(INDEX(list[tab],MATCH($AC$6,list[rus],0)) & \"[\" & INDEX(list[tab],MATCH($AC$6,list[rus],0))& \"]\"),MATCH(Table8[[#This Row],[рнд]],INDIRECT(INDEX(list[tab],MATCH($AC$6,list[rus],0)) & \"[id]\"),0)),\"\")","v":""}]

{"sheet":"Sheet2","index":1,"n_rows":0,"n_cols":0,"rows_kept":0,"cut":false,"hidden":false,"merged":[]}